fUSD/lending_fUSD_20260320
["ID","MTS","AMOUNT","RATE_DAILY","PERIOD"]
[408639033,1774036256744,-500.0,0.00014878,2]
[408639034,1774036256753,-500.0,0.00014878,2]
[408639035,1774036256763,-260.43481953,0.00014881,2]
[408639036,1774036256773,-726.49845376,0.00014881,2]
[408639037,1774036256783,-726.49845376,0.00014881,2]
[408639038,1774036256793,-726.49845376,0.00014881,2]
[408639039,1774036256802,-726.49845376,0.00014881,2]
[408639040,1774036256813,-726.49845376,0.00014881,2]
[408639041,1774036256822,-726.49845376,0.00014881,2]
[408639042,1774036256832,-726.49845376,0.00014881,2]
[408639043,1774036256843,-726.49845376,0.00014881,2]
[408639044,1774036256855,-726.49845376,0.00014881,2]
[408639045,1774036256865,-726.49845376,0.00014881,2]
[408639046,1774036256874,-726.49845376,0.00014881,2]
[408639047,1774036256885,-726.49845376,0.00014881,2]
[408639048,1774036256897,-726.49845376,0.00014881,2]
[408639049,1774036256909,-726.49845376,0.00014881,2]
[408639050,1774036256919,-726.49845376,0.00014881,2]
[408639051,1774036256929,-726.49845376,0.00014881,2]
[408639052,1774036256939,-726.49845376,0.00014881,2]
[408639053,1774036256949,-726.49845376,0.00014881,2]
[408639054,1774036256959,-726.49845376,0.00014881,2]
[408639055,1774036256968,-726.49845376,0.00014881,2]
[408639056,1774036256978,-726.49845376,0.00014881,2]
[408639057,1774036256988,-726.49845376,0.00014881,2]
[408639058,1774036256998,-726.49845376,0.00014881,2]
[408639059,1774036257009,-726.49845376,0.00014881,2]
[408639060,1774036257019,-726.49845376,0.00014881,2]
[408639061,1774036257030,-726.49845376,0.00014881,2]
[408639062,1774036257040,-726.49845376,0.00014881,2]
[408639063,1774036257050,-726.49845376,0.00014881,2]
[408639064,1774036257060,-726.49845376,0.00014881,2]
[408639065,1774036257070,-726.49845376,0.00014881,2]
[408639066,1774036257080,-726.49845376,0.00014881,2]
[408639067,1774036257091,-726.49845376,0.00014881,2]
[408639068,1774036257101,-726.49845376,0.00014881,2]
[408639069,1774036257112,-726.49845376,0.00014881,2]
[408639070,1774036257121,-726.49845376,0.00014881,2]
[408639071,1774036257131,-726.49845376,0.00014881,2]
[408639072,1774036257141,-726.49845376,0.00014881,2]
[408639073,1774036257151,-726.49845376,0.00014881,2]
[408639074,1774036257161,-726.49845376,0.00014881,2]
[408639075,1774036257171,-726.49845376,0.00014881,2]
[408639076,1774036257182,-726.49845376,0.00014881,2]
[408639077,1774036257192,-726.49845376,0.00014881,2]
[408639078,1774036257202,-726.49845376,0.00014881,2]
[408639079,1774036257213,-726.49845376,0.00014881,2]
[408639080,1774036257223,-726.49845376,0.00014881,2]
[408639081,1774036257233,-726.49845376,0.00014881,2]
[408639082,1774036257243,-726.49845376,0.00014881,2]
[408639083,1774036257253,-726.49845376,0.00014881,2]
[408639084,1774036257263,-726.49845376,0.00014881,2]
[408639085,1774036257274,-726.49845376,0.00014881,2]
[408639086,1774036257284,-726.49845376,0.00014881,2]
[408639087,1774036257295,-726.49845376,0.00014881,2]
[408639088,1774036257305,-726.49845376,0.00014881,2]
[408639089,1774036257316,-726.49845376,0.00014881,2]
[408639090,1774036257326,-726.49845376,0.00014881,2]
[408639091,1774036257337,-726.49845376,0.00014881,2]
[408639092,1774036257347,-726.49845376,0.00014881,2]
[408639093,1774036257357,-726.49845376,0.00014881,2]
[408639094,1774036257369,-726.49845376,0.00014881,2]
[408639095,1774036257380,-726.49845376,0.00014881,2]
[408639096,1774036257390,-726.49845376,0.00014881,2]
[408639097,1774036257400,-726.49845376,0.00014881,2]
[408639098,1774036257411,-726.49845376,0.00014881,2]
[408639099,1774036257421,-723.90381644,0.00014881,2]
[408639100,1774036257431,-723.90381644,0.00014881,2]
[408639101,1774036257446,-723.90381644,0.00014881,2]
[408639102,1774036257457,-723.90381644,0.00014881,2]
[408639103,1774036257466,-723.90381644,0.00014881,2]
[408639104,1774036257477,-723.90381644,0.00014881,2]
[408639105,1774036257487,-723.90381644,0.00014881,2]
[408639106,1774036257498,-723.90381644,0.00014881,2]
[408639107,1774036257511,-723.90381644,0.00014881,2]
[408639108,1774036257521,-723.90381644,0.00014881,2]
[408639109,1774036257531,-723.90381644,0.00014881,2]
[408639110,1774036257541,-723.90381644,0.00014881,2]
[408639111,1774036257551,-723.90381644,0.00014881,2]
[408639112,1774036257561,-723.90381644,0.00014881,2]
[408639113,1774036257571,-723.90381644,0.00014881,2]
[408639114,1774036257582,-723.90381644,0.00014881,2]
[408639115,1774036257595,-723.90381644,0.00014881,2]
[408639116,1774036257605,-723.90381644,0.00014881,2]
[408639117,1774036257616,-723.90381644,0.00014881,2]
[408639118,1774036257626,-723.90381644,0.00014881,2]
[408639119,1774036257637,-723.90381644,0.00014881,2]
[408639120,1774036257647,-723.90381644,0.00014881,2]
[408639121,1774036257658,-723.90381644,0.00014881,2]
[408639122,1774036257669,-723.90381644,0.00014881,2]
[408639123,1774036257679,-723.90381644,0.00014881,2]
[408639124,1774036257689,-723.90381644,0.00014881,2]
[408639125,1774036257699,-723.90381644,0.00014881,2]
[408639126,1774036257710,-500.0,0.00014881,2]
[408639127,1774036257719,-500.0,0.00014881,2]
[408639128,1774036257729,-3513.0,0.00014883,2]
[408639129,1774036257739,-1047.321,0.00014883,2]
[408639130,1774036257749,-1344.0,0.00014883,2]
[408639131,1774036257759,-1261.0,0.00014883,2]
[408639132,1774036257769,-150.0,0.00014883,2]
[408639133,1774036257779,-3759.0,0.00014883,2]
[408639134,1774036257790,-2465.0,0.00014883,2]
[408639135,1774036257800,-150.0,0.00014883,2]
[408639136,1774036257810,-1860.49882531,0.0001498,2]
[408639137,1774036257820,-1019.67811482,0.00015252,2]
[408639138,1774036257830,-1449.27096712,0.00015271,2]
[408639139,1774036257840,-800.0,0.00015356,2]
[408639140,1774036257851,-500.0,0.00015356,2]
[408639141,1774036257861,-500.0,0.00015356,2]
[408639142,1774036257873,-477.9006907,0.00015425,2]
[408639143,1774036257883,-1053.4,0.00015507,2]
[408639144,1774036257894,-150.0,0.00015606,2]
[408639145,1774036257905,-197.2742,0.000157,2]
[408639146,1774036258107,-1449.27096712,0.00015709,2]
[408639147,1774036258118,-1709.032,0.00015764,2]
[408639148,1774036258127,-503.0,0.00015865,4]
[408639149,1774036258137,-2000.0,0.0001589,2]
[408639150,1774036258148,-1053.4,0.00015895,2]
[408639151,1774036258157,-873.76244082,0.00015899,2]
[408639152,1774036258166,-153.05831618,0.000159,2]
[408639153,1774036258176,-5000.0,0.000159,2]
[408639154,1774036258185,-4863.25331553,0.000159,2]
[408639155,1774036258195,-258.63753161,0.000159,2]
[408639156,1774036258204,-500.0,0.00015973,2]
[408639157,1774036258213,-151.0,0.00015997,2]
[408639158,1774036258223,-151.0,0.00015997,2]
[408639159,1774036258232,-20435.9789533,0.00015998,2]
[408639160,1774036258241,-162.6142527,0.00015998,2]
[408639161,1774036258250,-2370.6496,0.00015998,2]
[408639162,1774036258259,-6055.1565528,0.00015998,2]
[408639163,1774036258268,-500.0,0.00015999,2]
[408639164,1774036258278,-500.0,0.00015999,2]
[408639165,1774036258287,-500.0,0.00015999,2]
[408639166,1774036258296,-500.0,0.00015999,2]
[408639167,1774036258305,-500.0,0.00015999,2]
[408639168,1774036258315,-500.0,0.00015999,2]
[408639169,1774036258324,-289.21138721,0.00015999,2]
[408639170,1774036258334,-500.0,0.00015999,2]
[408639171,1774036258343,-259.16426236,0.00015999,2]
[408639172,1774036258353,-500.0,0.00015999,2]
[408639173,1774036258363,-500.0,0.00015999,2]
[408639174,1774036258372,-259.42769234,0.00015999,2]
[408639175,1774036258382,-1070.0,0.00016,5]
[408639176,1774036258391,-873.0,0.00016,5]
[408639177,1774036258401,-1221264.23730895,0.00016,2]
[408639178,1774036258411,-4353.52,0.00016,2]
[408639179,1774036258421,-1830.9764662,0.00016003,2]
[408639180,1774036258430,-971.0,0.00016008,2]
[408639181,1774036258440,-498.0,0.00016008,2]
[408639182,1774036258450,-800.0,0.00016012,2]
[408639183,1774036258460,-800.0,0.00016012,2]
[408639184,1774036258470,-200.0,0.00016012,2]
[408639185,1774036258480,-200.0,0.00016012,2]
[408639186,1774036258490,-200.0,0.00016012,2]
[408639187,1774036258500,-800.0,0.00016012,2]
[408639188,1774036258513,-800.0,0.00016012,2]
[408639189,1774036258522,-800.0,0.00016012,2]
[408639190,1774036258531,-800.0,0.00016012,2]
[408639191,1774036258541,-800.0,0.00016012,2]
[408639192,1774036258551,-800.0,0.00016012,2]
[408639193,1774036258561,-800.0,0.00016012,2]
[408639194,1774036258570,-200.0,0.00016012,2]
[408639195,1774036258580,-200.0,0.00016012,2]
[408639196,1774036258590,-200.0,0.00016012,2]
[408639197,1774036258599,-200.0,0.00016012,2]
[408639198,1774036258608,-200.0,0.00016012,2]
[408639199,1774036258617,-200.0,0.00016012,2]
[408639200,1774036258626,-200.0,0.00016012,2]
[408639201,1774036258636,-200.0,0.00016012,2]
[408639202,1774036258645,-200.0,0.00016012,2]
[408639203,1774036258654,-800.0,0.00016012,2]
[408639204,1774036258664,-800.0,0.00016012,2]
[408639205,1774036258673,-800.0,0.00016012,2]
[408639206,1774036258683,-800.0,0.00016012,2]
[408639207,1774036258692,-800.0,0.00016012,2]
[408639208,1774036258702,-800.0,0.00016012,2]
[408639209,1774036258711,-800.0,0.00016012,2]
[408639210,1774036258720,-800.0,0.00016012,2]
[408639211,1774036258730,-800.0,0.00016012,2]
[408639212,1774036258739,-200.0,0.00016012,2]
[408639213,1774036258749,-200.0,0.00016012,2]
[408639214,1774036258758,-200.0,0.00016012,2]
[408639215,1774036258768,-200.0,0.00016012,2]
[408639216,1774036258777,-200.0,0.00016012,2]
[408639217,1774036258787,-200.0,0.00016012,2]
[408639218,1774036258797,-200.0,0.00016012,2]
[408639219,1774036258806,-200.0,0.00016012,2]
[408639220,1774036258815,-200.0,0.00016012,2]
[408639221,1774036258824,-200.0,0.00016012,2]
[408639222,1774036258834,-268.0,0.00016012,2]
[408639223,1774036258843,-800.0,0.00016012,2]
[408639224,1774036258852,-800.0,0.00016012,2]
[408639225,1774036258862,-800.0,0.00016012,2]
[408639226,1774036258871,-800.0,0.00016012,2]
[408639227,1774036258881,-800.0,0.00016012,2]
[408639228,1774036258890,-800.0,0.00016012,2]
[408639229,1774036258900,-800.0,0.00016012,2]
[408639230,1774036258911,-800.0,0.00016012,2]
[408639231,1774036258921,-252.0,0.00016012,2]
[408639232,1774036258932,-200.0,0.00016067,2]
[408639233,1774036258942,-200.0,0.00016067,2]
[408639234,1774036258952,-200.0,0.00016067,2]
[408639235,1774036258963,-200.0,0.00016067,2]
[408639236,1774036258974,-200.0,0.00016067,2]
[408639237,1774036258984,-200.0,0.00016067,2]
[408639238,1774036258994,-800.0,0.00016067,2]
[408639239,1774036259004,-800.0,0.00016067,2]
[408639240,1774036259015,-800.0,0.00016067,2]
[408639241,1774036259027,-800.0,0.00016067,2]
[408639242,1774036259038,-800.0,0.00016067,2]
[408639243,1774036259049,-800.0,0.00016067,2]
[408639244,1774036259058,-800.0,0.00016067,2]
[408639245,1774036259069,-800.0,0.00016067,2]
[408639246,1774036259079,-800.0,0.00016067,2]
[408639247,1774036259090,-800.0,0.00016067,2]
[408639248,1774036259101,-800.0,0.00016067,2]
[408639249,1774036259111,-200.0,0.00016067,2]
[408639250,1774036259121,-200.0,0.00016067,2]
[408639251,1774036259131,-200.0,0.00016067,2]
[408639252,1774036259140,-200.0,0.00016067,2]
[408639253,1774036259150,-200.0,0.00016067,2]
[408639254,1774036259160,-800.0,0.00016067,2]
[408639255,1774036259171,-222.54,0.00016074,2]
[408639256,1774036259180,-253.0,0.00016113,2]
[408639257,1774036259190,-4863.25331547,0.00016122,2]
[408639258,1774036259201,-1449.27096712,0.00016147,2]
[408639259,1774036259210,-253.0,0.00016149,2]
[408639260,1774036259220,-253.0,0.00016164,2]
[408639261,1774036259230,-150.0,0.00016164,2]
[408639262,1774036259241,-150.0,0.00016164,2]
[408639263,1774036259252,-150.0,0.00016164,2]
[408639264,1774036259262,-162.8175486,0.00016164,2]
[408639265,1774036259272,-150.0,0.00016164,2]
[408639266,1774036259282,-150.0,0.00016164,2]
[408639267,1774036259292,-150.0,0.00016164,2]
[408639268,1774036259301,-150.0,0.00016164,2]
[408639269,1774036259311,-150.0,0.00016164,2]
[408639270,1774036259320,-182.62818759,0.00016164,2]
[408639271,1774036259329,-150.0,0.00016164,2]
[408639272,1774036259338,-297.28260793,0.00016164,2]
[408639273,1774036259347,-150.0,0.00016164,2]
[408639274,1774036259357,-150.0,0.00016164,2]
[408639275,1774036259367,-200.0,0.00016164,2]
[408639276,1774036259377,-150.0,0.00016164,2]
[408639277,1774036259386,-150.44511733,0.00016164,2]
[408639278,1774036259396,-500.0,0.00016164,2]
[408639279,1774036259405,-500.0,0.00016164,2]
[408639280,1774036259414,-500.0,0.00016164,2]
[408639281,1774036259424,-855.0,0.00016164,2]
[408639282,1774036259434,-500.0,0.00016164,2]
[408639283,1774036259443,-500.0,0.00016164,2]
[408639284,1774036259453,-855.0,0.00016164,2]
[408639285,1774036259463,-500.0,0.00016164,2]
[408639286,1774036259472,-500.0,0.00016164,2]
[408639287,1774036259482,-500.0,0.00016164,2]
[408639288,1774036259491,-855.0,0.00016164,2]
[408639289,1774036259503,-500.0,0.00016164,2]
[408639290,1774036259513,-500.0,0.00016164,2]
[408639291,1774036259523,-500.0,0.00016164,2]
[408639292,1774036259532,-855.0,0.00016164,2]
[408639293,1774036259543,-500.0,0.00016164,2]
[408639294,1774036259553,-500.0,0.00016164,2]
[408639295,1774036259562,-500.0,0.00016164,2]
[408639296,1774036259571,-500.0,0.00016164,2]
[408639297,1774036259583,-500.0,0.00016164,2]
[408639298,1774036259592,-500.0,0.00016164,2]
[408639299,1774036259602,-855.0,0.00016164,2]
[408639300,1774036259612,-500.0,0.00016164,2]
[408639301,1774036259621,-500.0,0.00016164,2]
[408639302,1774036259630,-500.0,0.00016164,2]
[408639303,1774036259639,-500.0,0.00016164,2]
[408639304,1774036259649,-855.0,0.00016164,2]
[408639305,1774036259658,-500.0,0.00016164,2]
[408639306,1774036259668,-500.0,0.00016164,2]
[408639307,1774036259677,-500.0,0.00016164,2]
[408639308,1774036259687,-500.0,0.00016164,2]
[408639309,1774036259696,-855.0,0.00016164,2]
[408639310,1774036259706,-500.0,0.00016164,2]
[408639311,1774036259716,-500.0,0.00016164,2]
[408639312,1774036259725,-500.0,0.00016164,2]
[408639313,1774036259734,-500.0,0.00016164,2]
[408639314,1774036259743,-855.0,0.00016164,2]
[408639315,1774036259752,-500.0,0.00016164,2]
[408639316,1774036259762,-500.0,0.00016164,2]
[408639317,1774036259771,-500.0,0.00016164,2]
[408639318,1774036259780,-500.0,0.00016164,2]
[408639319,1774036259790,-500.0,0.00016164,2]
[408639320,1774036259799,-855.0,0.00016164,2]
[408639321,1774036259810,-500.0,0.00016164,2]
[408639322,1774036259819,-500.0,0.00016164,2]
[408639323,1774036259828,-289.46260013,0.00016164,2]
[408639324,1774036259837,-855.0,0.00016164,2]
[408639325,1774036259846,-500.0,0.00016164,2]
[408639326,1774036259855,-500.0,0.00016164,2]
[408639327,1774036259865,-500.0,0.00016164,2]
[408639328,1774036259875,-855.0,0.00016164,2]
[408639329,1774036259884,-500.0,0.00016164,2]
[408639330,1774036259894,-500.0,0.00016164,2]
[408639331,1774036259903,-500.0,0.00016164,2]
[408639332,1774036259915,-855.0,0.00016164,2]
[408639333,1774036259924,-500.0,0.00016164,2]
[408639334,1774036259934,-500.0,0.00016164,2]
[408639335,1774036259943,-204.45186036,0.00016164,2]
[408639336,1774036259952,-500.0,0.00016164,2]
[408639337,1774036259961,-500.0,0.00016164,2]
[408639338,1774036259971,-855.0,0.00016164,2]
[408639339,1774036259980,-500.0,0.00016164,2]
[408639340,1774036259990,-270.54097327,0.00016164,2]
[408639341,1774036260001,-855.0,0.00016164,2]
[408639342,1774036260017,-150.0,0.00016164,2]
[408639343,1774036260031,-855.0,0.00016164,2]
[408639344,1774036260044,-855.0,0.00016164,2]
[408639345,1774036260055,-855.0,0.00016164,2]
[408639346,1774036260068,-855.0,0.00016164,2]
[408639347,1774036260082,-500.0,0.00016164,2]
[408639348,1774036260094,-500.0,0.00016164,2]
[408639349,1774036260107,-855.0,0.00016164,2]
[408639350,1774036260120,-382.98457417,0.00016164,2]
[408639351,1774036260134,-855.0,0.00016164,2]
[408639352,1774036260145,-150.0,0.00016164,2]
[408639353,1774036260157,-855.0,0.00016164,2]
[408639354,1774036260168,-855.0,0.00016164,2]
[408639355,1774036260180,-855.0,0.00016164,2]
[408639356,1774036260193,-870.92750935,0.00016164,2]
[408639357,1774036260205,-873.76244082,0.00016185,2]
[408639358,1774036260218,-150.0,0.000162,2]
[408639359,1774036260231,-6904.74791705,0.00016209,2]
[408639360,1774036260244,-8192.2,0.00016228,2]
[408639361,1774036260257,-152.0,0.00016237,3]
[408639362,1774036260269,-150.0,0.00016251,2]
[408639363,1774036260282,-268.56124604,0.00016274,2]
[408639364,1774036260293,-1053.4,0.00016282,2]
[408639365,1774036260308,-253.0,0.00016288,2]
[408639366,1774036260322,-150.0,0.00016303,2]
[408639367,1774036260335,-253.0,0.00016339,2]
[408639368,1774036260347,-4863.25331547,0.00016344,2]
[408639369,1774036260360,-150.0,0.00016354,2]
[408639370,1774036260372,-253.0,0.00016371,2]
[408639371,1774036260384,-549.57411,0.0001639,2]
[408639372,1774036260399,-549.57411,0.0001639,2]
[408639373,1774036260411,-549.57411,0.0001639,2]
[408639374,1774036260423,-153.05831618,0.000164,2]
[408639375,1774036260436,-297.0,0.000164,2]
[408639376,1774036260447,-150.0,0.00016406,2]
[408639377,1774036260458,-408.5460721,0.0001641,2]
[408639378,1774036260469,-405.58276682,0.00016417,2]
[408639379,1774036260482,-157.66,0.00016438,2]
[408639380,1774036260497,-253.0,0.00016439,2]
[408639381,1774036260513,-150.0,0.00016457,2]
[408639382,1774036260524,-873.76244082,0.00016471,2]
[408639383,1774036260535,-150.0,0.00016509,2]
[408639384,1774036260546,-10000.0,0.00016545,2]
[408639385,1774036260559,-150.0,0.0001656,2]
[408639386,1774036260571,-549.57411,0.0001656,2]
[408639387,1774036260583,-549.57411,0.0001656,2]
[408639388,1774036260594,-549.57411,0.0001656,2]
[408639389,1774036260605,-4863.25331547,0.00016567,2]
[408639390,1774036260618,-1449.27096712,0.00016585,2]
[408639391,1774036260628,-2000.0,0.000166,2]
[408639392,1774036260640,-150.0,0.00016611,2]
[408639393,1774036260651,-1069.0,0.00016645,5]
[408639394,1774036260662,-200.0,0.00016646,2]
[408639395,1774036260673,-1469.6723745,0.0001666,2]
[408639396,1774036260684,-150.0,0.00016663,2]
[408639397,1774036260695,-1053.4,0.0001667,2]
[408639398,1774036260707,-253.0,0.00016675,2]
[408639399,1774036260719,-166.81,0.00016712,2]
[408639400,1774036260730,-150.0,0.00016714,2]
[408639401,1774036260740,-800.0,0.00016726,7]
[408639402,1774036260752,-500.0,0.00016726,7]
[408639403,1774036260763,-253.0,0.00016732,2]
[408639404,1774036260774,-873.76244082,0.00016757,2]
[408639405,1774036260784,-150.0,0.00016766,2]
[408639406,1774036260795,-253.0,0.00016771,2]
[408639407,1774036260806,-253.0,0.00016788,2]
[408639408,1774036260817,-4863.25331547,0.00016789,2]
[408639409,1774036260829,-150.0,0.00016817,2]
[408639410,1774036260839,-150.0,0.00016869,2]
[408639411,1774036260850,-289.0,0.00016897,2]
[408639412,1774036260861,-259.4475,0.000169,2]
[408639413,1774036260872,-153.05831618,0.000169,2]
[408639414,1774036260884,-310.24933161,0.00016903,2]
[408639415,1774036260895,-300.0,0.00016903,2]
[408639416,1774036260906,-187036.29,0.00016904,2]
[408639417,1774036260917,-13032.57,0.00016904,2]
[408639418,1774036260927,-2530.06,0.00016904,2]
[408639419,1774036260939,-436.88,0.00016911,2]
[408639420,1774036260949,-427.94,0.00016911,2]
[408639421,1774036260960,-150.0,0.0001692,2]
[408639422,1774036260972,-1208.7,0.00016922,2]
[408639423,1774036260984,-9902.17,0.00016922,2]
[408639424,1774036260995,-9999.99,0.00016922,2]
[408639425,1774036261007,-253.0,0.00016943,2]
[408639426,1774036261018,-253.0,0.00016945,2]
[408639427,1774036261029,-500.0,0.00016959,2]
[408639428,1774036261041,-150.0,0.00016971,2]
[408639429,1774036261052,-347.47666717,0.00016973,2]
[408639430,1774036261063,-500.0,0.00016973,2]
[408639431,1774036261074,-500.0,0.00016973,2]
[408639432,1774036261085,-168.0,0.00016984,2]
[408639433,1774036261096,-300.0,0.00016999,2]
[408639434,1774036261107,-310.30278726,0.00016999,2]
[408639435,1774036261120,-680619.33668455,0.00017,2]
[408639436,1774036261132,-220.44,0.00017,2]
[408639437,1774036261144,-42344.06,0.00017,2]
[408639438,1774036261155,-2983.69,0.00017,2]
[408639439,1774036261165,-300.0,0.00017,2]
[408639440,1774036261175,-151.0,0.00017,2]
[408639441,1774036261186,-151.0,0.00017,2]
[408639442,1774036261197,-4863.25331547,0.00017011,2]
[408639443,1774036261208,-150.0,0.00017023,2]
[408639444,1774036261219,-1449.27096712,0.00017024,2]
[408639445,1774036261230,-253.0,0.00017035,2]
[408639446,1774036261241,-873.76244082,0.00017042,2]
[408639447,1774036261252,-168.0,0.00017055,2]
[408639448,1774036261263,-1053.4,0.00017058,2]
[408639449,1774036261275,-253.0,0.00017058,2]
[408639450,1774036261286,-358.0,0.00017068,2]
[408639451,1774036261297,-150.0,0.00017074,2]
[408639452,1774036261309,-49669.28859393,0.000171,2]
[408639453,1774036261320,-253.0,0.00017101,2]
[408639454,1774036261331,-253.0,0.00017108,2]
[408639455,1774036261342,-150.0,0.00017126,2]
[408639456,1774036261355,-166.66,0.00017126,2]
[408639457,1774036261368,-168.0,0.00017138,2]
[408639458,1774036261379,-165.82,0.00017146,2]
[408639459,1774036261390,-500.0,0.00017159,7]
[408639460,1774036261401,-500.0,0.00017159,7]
[408639461,1774036261413,-500.0,0.00017159,7]
[408639462,1774036261424,-253.0,0.00017165,2]
[408639463,1774036261435,-150.0,0.00017177,2]
[408639464,1774036261446,-2368.14,0.000172,2]
[408639465,1774036261457,-410.13764258,0.00017207,2]
[408639466,1774036261468,-150.0,0.00017229,2]
[408639467,1774036261479,-4863.25331547,0.00017233,2]
[408639468,1774036261490,-151.0,0.0001726,2]
[408639469,1774036261502,-150.0,0.0001728,2]
[408639470,1774036261516,-253.0,0.00017307,2]
[408639471,1774036261528,-873.76244082,0.00017328,2]
[408639472,1774036261540,-150.0,0.00017331,2]
[408639473,1774036261552,-826.15615969,0.00017362,2]
[408639474,1774036261564,-150.0,0.00017383,2]
[408639475,1774036261576,-253.0,0.00017392,2]
[408639476,1774036261587,-4353.52,0.000174,2]
[408639477,1774036261599,-153.05831618,0.000174,2]
[408639478,1774036261611,-253.0,0.0001743,2]
[408639479,1774036261622,-500.0,0.00017433,7]
[408639480,1774036261634,-500.0,0.00017433,7]
[408639481,1774036261645,-150.0,0.00017434,2]
[408639482,1774036261656,-150.0,0.00017439,2]
[408639483,1774036261667,-150.0,0.00017439,2]
[408639484,1774036261679,-150.0,0.00017439,2]
[408639485,1774036261690,-150.0,0.00017439,2]
[408639486,1774036261701,-150.0,0.00017439,2]
[408639487,1774036261712,-150.0,0.00017439,2]
[408639488,1774036261723,-150.0,0.00017439,2]
[408639489,1774036261735,-150.0,0.00017439,2]
[408639490,1774036261746,-163.6471091,0.00017454,3]
[408639491,1774036261757,-4863.25331547,0.00017456,2]
[408639492,1774036261768,-1449.27096712,0.00017462,2]
[408639493,1774036261779,-150.0,0.00017486,2]
[408639494,1774036261789,-1000.0,0.00017521,2]
[408639495,1774036261800,-1000.76699658,0.00017521,2]
[408639496,1774036261811,-151.0,0.00017534,2]
[408639497,1774036261822,-150.0,0.00017537,2]
[408639498,1774036261833,-13552.71916014,0.0001754,2]
[408639499,1774036261844,-2000.0,0.00017554,2]
[408639500,1774036261855,-150.0,0.00017589,2]
[408639501,1774036261866,-300.0,0.00017607,2]
[408639502,1774036261877,-873.76244082,0.00017614,2]
[408639503,1774036261887,-150.0,0.0001764,2]
[408639504,1774036261898,-4863.25331547,0.00017678,2]
[408639505,1774036261909,-150.0,0.00017691,2]
[408639506,1774036261920,-253.0,0.00017693,2]
[408639507,1774036261931,-787.61828283,0.000177,2]
[408639508,1774036261943,-500.0,0.00017707,7]
[408639509,1774036261953,-500.0,0.00017707,7]
[408639510,1774036261963,-13552.71916013,0.0001772,2]
[408639511,1774036261975,-150.0,0.00017743,2]
[408639512,1774036261986,-247.5339924,0.00017783,2]
[408639513,1774036261997,-150.0,0.00017794,2]
[408639514,1774036262009,-1504.73,0.000178,2]
[408639515,1774036262019,-2255.72,0.000178,2]
[408639516,1774036262033,-151.0,0.00017808,2]
[408639517,1774036262044,-800.0,0.00017808,2]
[408639518,1774036262055,-475.75812515,0.0001782,2]
[408639519,1774036262065,-800.0,0.00017822,7]
[408639520,1774036262076,-500.0,0.00017822,7]
[408639521,1774036262087,-247.5339924,0.00017842,2]
[408639522,1774036262098,-150.0,0.00017846,2]
[408639523,1774036262109,-1008.44548116,0.0001786,2]
[408639524,1774036262122,-222.54,0.0001786,2]
[408639525,1774036262133,-5800.0,0.00017866,2]
[408639526,1774036262143,-2000.0,0.00017874,3]
[408639527,1774036262154,-5800.0,0.00017874,2]
[408639528,1774036262166,-3513.0,0.00017883,2]
[408639529,1774036262177,-1044.0,0.00017883,2]
[408639530,1774036262187,-1261.0,0.00017883,2]
[408639531,1774036262199,-3759.0,0.00017883,2]
[408639532,1774036262446,-2465.0,0.00017883,2]